bitfinex-derivatives/quotes_BTCF0:USTF0_20251119
["timestamp","ask_amount","ask_price","bid_price","bid_amount"]
[1763510401967,0.3608,93023.0,93022.0,0.04572]
[1763510403965,0.38412,93023.0,93022.0,0.02264]
[1763510404164,0.38412,93023.0,93020.0,0.00219803]
[1763510404165,0.02332,93021.0,93020.0,0.00219803]
[1763510404465,0.02332,93021.0,93020.0,0.04791803]
[1763510405166,0.28236,93021.0,93020.0,0.04791803]
[1763510405964,0.3608,93023.0,93022.0,0.04572]
[1763510406164,0.02348123,93031.0,93030.0,0.05963]
[1763510406465,0.28244123,93031.0,93030.0,0.16937713]
[1763510408670,0.28244123,93031.0,93030.0,0.06182803]
[1763510412469,0.02348123,93031.0,93030.0,0.06182803]
[1763510412665,0.25908123,93031.0,93030.0,0.06182803]
[1763510413273,0.00016123,93031.0,93030.0,0.06182803]
[1763510414072,0.02348123,93031.0,93030.0,0.06182803]
[1763510414579,0.00016123,93031.0,93030.0,0.06182803]
[1763510414968,0.01182123,93031.0,93030.0,0.06182803]
[1763510415378,0.02348123,93031.0,93030.0,0.06182803]
[1763510415871,0.00016123,93031.0,93030.0,0.06182803]
[1763510417079,0.38428123,93031.0,93030.0,0.06182803]
[1763510417275,0.1308771,93023.0,93022.0,0.03854489]
[1763510417472,0.02332,93022.0,93021.0,0.00016123]
[1763510419585,0.28232,93022.0,93021.0,0.00016123]
[1763510421084,0.02332,93013.0,93012.0,0.03655]
[1763510421278,0.64308,93013.0,93012.0,0.05963]
[1763510423585,0.7506487,93013.0,93012.0,0.05963]
[1763510424279,0.64308,93013.0,93012.0,0.05963]
[1763510424586,0.64308,93013.0,93012.0,0.1671999]
[1763510427473,0.64308,93013.0,93012.0,0.05963]
[1763510428584,0.02332,93011.0,93010.0,0.00073264]
[1763510428789,0.02332,93007.0,93006.0,0.0002688]
[1763510429688,0.1308956,93007.0,93006.0,0.0002688]
[1763510430187,0.1308991,93004.0,93003.0,3e-08]
[1763510430380,0.1300449,92999.0,92979.0,0.1076072]
[1763510430581,0.02246,92983.0,92982.0,0.1646146]
[1763510431275,0.02246,92983.0,92980.0,0.00073264]
[1763510431276,0.02246,92981.0,92980.0,0.00073264]
[1763510431476,0.02246,92981.0,92980.0,0.04451264]
[1763510431477,0.02256174,92981.0,92980.0,0.04451264]
[1763510432291,0.02256174,92981.0,92980.0,0.04551264]
[1763510432484,0.02256174,92981.0,92980.0,0.04651264]
[1763510432885,0.02256174,92981.0,92980.0,0.04551264]
[1763510433780,0.02256174,92981.0,92980.0,0.04451264]
[1763510435089,0.02256174,92981.0,92980.0,0.04378]
[1763510435284,0.02246,92977.0,92976.0,0.03502]
[1763510435486,0.7498704,92977.0,92976.0,0.05701]
[1763510435992,0.1300738,92974.0,92973.0,0.00016132]
[1763510436189,0.02246,92974.0,92973.0,0.04394132]
[1763510440485,0.1300738,92974.0,92973.0,0.04394132]
[1763510441988,0.3608,92977.0,92976.0,0.05701]
[1763510442289,0.00010174,92981.0,92980.0,0.15211964]
[1763510442597,0.3608,92997.0,92980.0,0.15211964]
[1763510442598,0.25912,92989.0,92988.0,0.1646078]
[1763510442790,0.3608,92997.0,92988.0,0.1646078]
[1763510443089,0.3608,92997.0,92991.0,0.1513743]
[1763510443290,0.25928132,92992.0,92991.0,0.1513743]
[1763510443794,0.25928132,92992.0,92990.0,0.00073264]
[1763510443795,0.1300543,92991.0,92990.0,0.00073264]
[1763510443992,0.1300543,92991.0,92990.0,0.04451264]
[1763510443993,0.02246,92991.0,92990.0,0.04451264]
[1763510444288,0.1300543,92991.0,92990.0,0.04451264]
[1763510444688,0.02246,92991.0,92990.0,0.15210804]
[1763510444887,0.11898442,92992.0,92991.0,0.04378]
[1763510445092,0.38937442,92992.0,92991.0,0.04378]
[1763510445694,0.02246,92991.0,92990.0,0.00073264]
[1763510445991,0.1300647,92982.0,92981.0,0.05701]
[1763510446186,0.7500247,92982.0,92981.0,0.05701]
[1763510447096,0.64242,92982.0,92981.0,0.05701]
[1763510447283,0.61996,92982.0,92981.0,0.05701]
[1763510448996,0.63119,92982.0,92981.0,0.05701]
[1763510449391,0.64242,92982.0,92981.0,0.05701]
[1763510451688,0.7500247,92982.0,92981.0,0.05701]
[1763510452092,0.64242,92982.0,92981.0,0.05701]
[1763510459595,0.3608,92982.0,92981.0,0.05701]
[1763510459797,0.61988,92982.0,92981.0,0.05701]
[1763510460186,0.61988,92982.0,92981.0,0.1147459]
[1763510460398,0.00016132,92992.0,92991.0,0.04482]
[1763510460601,0.00016132,92992.0,92991.0,0.1524142]
[1763510460602,0.25924132,92992.0,92991.0,0.1524142]
[1763510460901,0.28170132,92992.0,92991.0,0.1524142]
[1763510463400,0.27047132,92992.0,92991.0,0.1524142]
[1763510463594,0.25924132,92992.0,92991.0,0.1524142]
[1763510463795,0.28170132,92992.0,92991.0,0.1524142]
[1763510468307,0.25924132,92992.0,92991.0,0.1524142]
[1763510468498,0.00016132,92992.0,92991.0,0.1524142]
[1763510468704,0.38326,93013.0,93012.0,0.1654498]
[1763510468902,0.28154,93020.0,93019.0,0.1523817]
[1763510469106,0.30523846,93020.0,93019.0,0.1523817]
[1763510469302,0.28373803,93020.0,93019.0,0.1523817]
[1763510469605,0.1075699,93013.0,93012.0,0.1075699]
[1763510469814,0.3891099,93013.0,93012.0,0.1302799]
[1763510470108,0.28254,93013.0,93012.0,0.1654499]
[1763510470613,0.28154,93013.0,93012.0,0.1654499]
[1763510470800,0.28154,93013.0,93012.0,0.1664499]
[1763510471605,0.28154,93013.0,93012.0,0.001]
[1763510471606,0.64234,93013.0,93012.0,0.001]
[1763510471806,0.66601551,93013.0,93012.0,0.001]
[1763510472114,0.66601551,93013.0,93003.0,0.00016132]
[1763510472115,0.02246,93004.0,93003.0,0.00016132]
[1763510472308,0.64234,93004.0,93003.0,0.00016132]
[1763510472813,0.38326,93004.0,93003.0,0.04498132]
[1763510473118,0.64234,93004.0,93003.0,0.04498132]
[1763510473807,0.64234,93004.0,93003.0,0.00016132]
[1763510475608,0.64234,93004.0,93003.0,0.10774162]
[1763510476115,0.37203,93004.0,93003.0,0.15256162]
[1763510476313,0.64234,93004.0,93003.0,0.15256162]
[1763510476515,0.64234,93004.0,93003.0,0.10774162]
[1763510477113,0.64234,93004.0,93003.0,0.00016132]
[1763510477315,0.64234,93004.0,93003.0,0.10774162]
[1763510477518,0.64234,93004.0,93003.0,0.15256162]
[1763510477711,0.63111,93004.0,93003.0,0.15256162]
[1763510478017,0.64234,93004.0,93003.0,0.15256162]
[1763510478215,0.64234,93004.0,93003.0,0.00016132]
[1763510479920,0.64234,93004.0,93003.0,0.04498132]
[1763510480520,0.64234,93004.0,93003.0,0.00016132]
[1763510482714,0.02246,92989.0,92988.0,0.05657]
[1763510482918,0.02246,92989.0,92988.0,0.1641676]
[1763510483812,0.02246,92989.0,92988.0,0.05657]
[1763510484014,0.02246,92989.0,92988.0,0.05757]
[1763510484528,0.02246,92989.0,92988.0,0.001]
[1763510485309,0.02246,92989.0,92988.0,0.002]
[1763510486119,0.02246,92989.0,92988.0,0.05838]
[1763510487123,0.02246,92989.0,92988.0,0.002]
[1763510487314,0.38326,92989.0,92988.0,0.002]
[1763510488824,0.38326,92989.0,92988.0,0.001]
[1763510489429,0.38326,92989.0,92979.0,0.10776932]
[1763510489725,0.4908669,92980.0,92979.0,0.04306132]
[1763510489925,0.75210493,92980.0,92979.0,0.04306132]
[1763510491723,0.64449803,92980.0,92979.0,0.04306132]
[1763510494734,0.63326803,92980.0,92979.0,0.04306132]
[1763510496227,0.64449803,92980.0,92979.0,0.04306132]
[1763510498135,0.38545803,92980.0,92979.0,0.04306132]
[1763510498335,0.64449803,92980.0,92979.0,0.04306132]
[1763510498928,0.64449803,92980.0,92979.0,0.00016132]
[1763510500433,0.64449803,92980.0,92979.0,0.02158132]
[1763510500836,0.64449803,92980.0,92979.0,0.04306132]
[1763510503639,0.64449803,92980.0,92979.0,0.00016132]
[1763510507742,0.64449803,92980.0,92966.0,0.00026892]
[1763510507743,0.02246,92967.0,92966.0,0.00026892]
[1763510507934,0.02246,92967.0,92952.0,0.01383]
[1763510507935,0.02246,92960.0,92956.0,0.05794948]
[1763510508139,0.4908935,92957.0,92956.0,0.0429]
[1763510509037,0.4908935,92957.0,92956.0,0.02142]
[1763510509843,0.38326,92957.0,92956.0,0.0429]
[1763510510833,0.4908935,92957.0,92956.0,0.0429]
[1763510511834,0.38326,92957.0,92956.0,0.0429]
[1763510512850,0.01123,92948.0,92947.0,0.04300799]
[1763510513052,0.3891839,92948.0,92947.0,0.00010799]
[1763510514252,0.3891839,92948.0,92947.0,0.04300799]
[1763510514443,0.3891839,92948.0,92947.0,0.00010799]
[1763510514642,0.3891839,92948.0,92947.0,0.00210799]
[1763510514842,0.28154,92948.0,92947.0,0.04500799]
[1763510516148,0.28154,92948.0,92947.0,0.00210799]
[1763510516452,0.28154,92948.0,92947.0,0.04500799]
[1763510520664,0.28154,92948.0,92947.0,0.02352799]
[1763510521167,0.28154,92948.0,92947.0,0.04617799]
[1763510521569,0.28154,92948.0,92947.0,0.00210799]
[1763510521961,0.02246,92941.0,92940.0,0.1076527]
[1763510522262,0.749992,92941.0,92940.0,0.02104]
[1763510522667,0.1301155,92938.0,92937.0,0.1286964]
[1763510522969,0.1076636,92932.0,92931.0,0.1513533]
[1763510523173,0.3882436,92932.0,92931.0,0.1513533]
[1763510523372,0.02246,92931.0,92927.0,0.1076682]
[1763510523561,0.02246,92931.0,92926.0,0.00026903]
[1763510523769,0.02146,92931.0,92926.0,0.00026903]
[1763510523970,0.02046,92931.0,92926.0,0.10793763]
[1763510524163,0.02046,92931.0,92926.0,0.00026903]
[1763510524366,0.01946,92931.0,92926.0,0.00026903]
[1763510524667,0.1241283,92927.0,92926.0,0.00026903]
[1763510524868,0.1231283,92927.0,92926.0,0.00026903]
[1763510525465,0.12322531,92927.0,92926.0,0.00026903]
[1763510526269,0.48402531,92927.0,92926.0,0.00026903]
[1763510526464,0.48402531,92927.0,92894.0,0.3608]
[1763510526465,0.00723,92905.0,92904.0,0.03376]
[1763510526777,0.01446,92899.0,92898.0,0.05641]
[1763510527074,0.37526,92899.0,92898.0,0.05641]
[1763510528770,0.37426,92899.0,92898.0,0.05641]
[1763510529168,0.01246,92893.0,92892.0,0.1414689]
[1763510529365,0.1201724,92889.0,92888.0,0.04369]
[1763510529577,0.01146,92881.0,92880.0,0.1641328]
[1763510529877,0.6315,92881.0,92880.0,0.16486544]
[1763510530469,0.6305,92881.0,92880.0,0.16486544]
[1763510530670,0.63058,92881.0,92880.0,0.16486544]
[1763510530881,0.63058,92881.0,92880.0,0.05714264]
[1763510531775,0.37126,92881.0,92880.0,0.05714264]
[1763510531976,0.63058,92881.0,92880.0,0.05714264]
[1763510532781,0.37126,92881.0,92880.0,0.05714264]
[1763510533379,0.00219803,92880.0,92848.0,0.01272]
[1763510533588,0.00219803,92880.0,92841.0,0.01272]
[1763510533589,0.1077588,92849.0,92841.0,0.01272]
[1763510533797,0.25944,92848.0,92841.0,0.01272]
[1763510534083,0.3608,92842.0,92820.0,0.01272]
[1763510534284,0.25944,92848.0,92813.0,0.01272]
[1763510534285,0.3608,92821.0,92813.0,0.01272]
[1763510534485,0.3608,92826.0,92813.0,0.01272]
[1763510534486,0.3608,92814.0,92813.0,0.01272]
[1763510535074,0.3608,92814.0,92813.0,0.03376]
[1763510535293,0.3608,92814.0,92813.0,0.05641]
[1763510535785,0.62064,92814.0,92813.0,0.05641]
[1763510538584,0.3608,92814.0,92813.0,0.05641]
[1763510538988,0.62068,92814.0,92813.0,0.05641]
[1763510539489,0.00010723,92820.0,92819.0,0.1514836]
[1763510540386,0.00230526,92820.0,92819.0,0.1514836]
[1763510540984,0.00230526,92820.0,92808.0,0.01272]
[1763510541184,0.00230526,92820.0,92806.0,0.00026938]
[1763510541185,0.4686052,92809.0,92806.0,0.00026938]
[1763510541387,0.26011045,92808.0,92799.0,0.05641]
[1763510541590,0.00219803,92800.0,92799.0,0.01272]
[1763510542190,0.36299803,92800.0,92799.0,0.00694648]
[1763510542578,0.1078261,92791.0,92790.0,0.01272]
[1763510542789,0.1078261,92791.0,92772.0,0.01272]
[1763510542790,0.00219803,92790.0,92772.0,0.01272]
[1763510542982,0.107854,92767.0,92763.0,0.01375]
[1763510543291,0.26022521,92767.0,92763.0,0.01375]
[1763510543492,0.26022521,92767.0,92766.0,0.0432395]
[1763510544487,0.00010521,92767.0,92766.0,0.0432395]
[1763510544692,0.26026521,92767.0,92766.0,0.0432395]
[1763510545185,0.00010521,92767.0,92766.0,0.0432395]
[1763510546387,0.3608,92773.0,92772.0,0.04297]
[1763510546687,0.3258,92773.0,92772.0,0.1508182]
[1763510547487,0.3608,92789.0,92788.0,0.1527696]
[1763510548293,0.26028,92798.0,92797.0,0.1527591]
[1763510551681,0.26028,92798.0,92790.0,0.01376]
[1763510551885,0.26028,92798.0,92791.0,0.1078261]
[1763510551886,0.3608,92794.0,92791.0,0.1078261]
[1763510552086,0.3608,92794.0,92791.0,0.1527661]
[1763510552388,0.3608,92794.0,92793.0,0.04494]
[1763510554188,0.1078285,92789.0,92788.0,0.0001617]
[1763510554493,0.107854,92768.0,92757.0,0.3608]
[1763510554694,0.62104,92767.0,92766.0,0.1081237]
[1763510554899,0.62108,92767.0,92766.0,0.1298547]
[1763510555098,0.62108,92767.0,92766.0,0.1530647]
[1763510557397,0.62108,92767.0,92766.0,0.1081247]
[1763510557804,0.62108,92767.0,92766.0,0.1530647]
[1763510563600,0.62108,92767.0,92766.0,0.1081247]
[1763510564000,0.62108,92767.0,92766.0,0.0002695]
[1763510564205,0.1078703,92753.0,92751.0,0.1078726]
[1763510564402,0.98188,92752.0,92745.0,0.01376]
[1763510564704,0.98188,92752.0,92749.0,0.1078742]
[1763510564705,0.00219803,92750.0,92749.0,0.1078742]
[1763510564999,0.00219803,92750.0,92749.0,0.1528142]
[1763510565208,0.26264817,92750.0,92749.0,0.1528142]
[1763510565798,0.00228817,92750.0,92749.0,0.1528142]
[1763510565998,0.26264817,92750.0,92749.0,0.1528142]
[1763510572297,9.014e-05,92750.0,92749.0,0.1528142]
[1763510573805,0.00228817,92750.0,92749.0,0.1528142]
[1763510575908,0.00228817,92750.0,92749.0,0.19146278]
[1763510577308,0.00228817,92750.0,92749.0,0.1528142]
[1763510578107,0.11016197,92750.0,92749.0,0.1078742]
[1763510578320,0.00228817,92750.0,92748.0,0.1522849]
[1763510578504,0.11016307,92750.0,92748.0,0.1306549]
[1763510578704,0.00228817,92750.0,92748.0,0.1306549]
[1763510578904,0.00228817,92750.0,92748.0,0.19093348]
[1763510579313,0.00228817,92750.0,92749.0,0.04441]
[1763510580511,9.014e-05,92750.0,92749.0,0.04441]
[1763510580707,0.26260817,92750.0,92749.0,0.04441]
[1763510580910,0.26260817,92750.0,92749.0,0.10234326]
[1763510581211,0.26260817,92750.0,92749.0,0.04441]
[1763510581719,0.00228817,92750.0,92749.0,0.04441]
[1763510582716,0.23670568,92751.0,92750.0,0.15448183]
[1763510584111,0.23670568,92751.0,92750.0,0.1078738]
[1763510584416,0.1078785,92748.0,92745.0,0.01376]
[1763510584618,0.00073267,92750.0,92749.0,0.107875]
[1763510585110,0.00073267,92750.0,92749.0,0.152285]
[1763510589316,0.00073267,92750.0,92749.0,0.02278]
[1763510589517,0.00073267,92750.0,92745.0,0.09094627]
[1763510589817,0.3608,92746.0,92745.0,0.1660496]
[1763510590622,0.33489359,92746.0,92745.0,0.1660496]
[1763510590814,0.33489359,92746.0,92745.0,0.24323587]
[1763510591521,0.59517359,92746.0,92745.0,0.1660496]
[1763510592109,0.59517359,92746.0,92745.0,0.24323587]
[1763510592715,0.00073267,92750.0,92749.0,0.152285]
[1763510592919,0.3608,92752.0,92751.0,0.1522827]
[1763510593110,0.3258,92752.0,92751.0,0.1522827]
[1763510595022,0.3258,92752.0,92751.0,0.18052693]
[1763510596122,0.36504,92752.0,92751.0,0.18052693]
[1763510597328,0.3258,92752.0,92751.0,0.18052693]
[1763510597521,0.34542,92752.0,92751.0,0.18052693]
[1763510598025,0.36504,92752.0,92751.0,0.02824423]
[1763510598525,0.00073267,92750.0,92748.0,0.1078756]
[1763510598727,0.1078785,92746.0,92745.0,0.01294]
[1763510598926,0.3681985,92746.0,92745.0,0.01294]
[1763510599529,0.3681985,92746.0,92745.0,0.1208197]
[1763510599721,0.26032,92746.0,92745.0,0.1208197]
[1763510600815,0.66142566,92752.0,92745.0,0.1652297]
[1763510601021,0.66142566,92752.0,92751.0,0.1522827]
[1763510601220,0.56094566,92752.0,92751.0,0.1522827]
[1763510603522,0.30062566,92752.0,92751.0,0.1522827]
[1763510603718,0.1078436,92776.0,92775.0,0.04425]
[1763510603924,0.26028,92776.0,92775.0,0.04425]
[1763510604833,0.1078448,92775.0,92770.0,0.00219803]
[1763510605130,0.26028,92776.0,92773.0,0.129976]
[1763510605519,0.3681239,92776.0,92773.0,0.02213]
[1763510605926,0.3681239,92776.0,92773.0,0.129976]
[1763510606120,0.3681239,92776.0,92773.0,0.02213]
[1763510606326,0.26028,92776.0,92774.0,0.1520949]
[1763510606624,0.23437907,92776.0,92774.0,0.1520949]
[1763510606825,0.1078447,92775.0,92774.0,0.1078449]
[1763510607030,0.23437907,92776.0,92774.0,0.1520949]
[1763510607531,0.1078482,92772.0,92770.0,0.00219803]
[1763510607720,0.107854,92767.0,92766.0,0.0001617]
[1763510607922,0.26028,92767.0,92766.0,0.0001617]
[1763510610520,0.26028,92767.0,92766.0,0.03142211]
[1763510613128,0.26028,92767.0,92766.0,0.05447211]
[1763510613327,0.26028,92767.0,92766.0,0.07755211]
[1763510614637,0.1078465,92774.0,92770.0,0.04832803]
[1763510614837,0.3680883,92773.0,92771.0,0.18523981]
[1763510615025,0.3680883,92773.0,92772.0,0.03126041]
[1763510616634,0.3680883,92773.0,92772.0,0.05431041]
[1763510618435,0.3680883,92773.0,92772.0,0.11248254]
[1763510618734,0.3680883,92773.0,92772.0,0.13556254]
[1763510619233,0.3680883,92773.0,92772.0,0.08943254]
[1763510619430,0.26024,92773.0,92772.0,0.08943254]
[1763510619635,0.26024,92773.0,92772.0,0.11248254]
[1763510620633,0.26024,92773.0,92772.0,0.13556254]
[1763510621024,0.3680871,92773.0,92772.0,0.24341074]
[1763510622034,0.3680871,92773.0,92772.0,0.03126041]
[1763510622732,0.34218424,92773.0,92772.0,0.03126041]
[1763510623125,0.34218424,92773.0,92772.0,0.07739041]
[1763510623423,0.23433714,92773.0,92772.0,0.07739041]
[1763510623630,0.23433714,92773.0,92772.0,0.13556254]
[1763510624124,0.23433714,92773.0,92772.0,0.07739041]
[1763510624519,0.23433714,92773.0,92772.0,0.1043143]
[1763510624730,0.23433714,92773.0,92772.0,0.0769265]
[1763510627730,0.23433714,92773.0,92772.0,0.07704759]
[1763510629837,0.23433714,92773.0,92772.0,0.03091759]
[1763510630141,0.1078529,92768.0,92766.0,0.0001617]
[1763510630332,0.3608,92767.0,92766.0,0.0001617]
[1763510630740,0.33489608,92767.0,92766.0,0.0001617]
[1763510630937,0.1078622,92760.0,92757.0,0.07758686]
[1763510631235,0.1078726,92752.0,92750.0,0.00219803]
[1763510631432,0.26024,92751.0,92750.0,0.00219803]
[1763510633234,0.26024,92751.0,92750.0,0.02524803]
[1763510633438,0.26024,92751.0,92750.0,0.04832803]
[1763510634129,0.26024,92751.0,92750.0,0.02524803]
[1763510634540,0.26024,92751.0,92750.0,0.00219803]
[1763510634738,0.1078773,92747.0,92746.0,0.02305]
[1763510635037,0.1078739,92750.0,92749.0,0.1078738]
[1763510635425,0.1078739,92750.0,92749.0,0.1309238]
[1763510636336,0.1078739,92750.0,92749.0,0.02305]
[1763510637234,0.4686739,92750.0,92749.0,0.02305]
[1763510637534,0.4686739,92750.0,92743.0,0.09084686]
[1763510637535,0.1078785,92746.0,92743.0,0.09084686]
[1763510637742,0.1078843,92741.0,92740.0,0.00219803]
[1763510637935,0.26024,92741.0,92740.0,0.02466803]
[1763510638240,0.26024,92741.0,92740.0,0.04605803]
[1763510640030,0.1078959,92731.0,92730.0,0.05399]
[1763510640235,0.1078959,92731.0,92726.0,0.00026961]
[1763510640236,0.1079006,92727.0,92726.0,0.00026961]
[1763510640435,0.62104,92731.0,92730.0,0.00219803]
[1763510640635,0.728936,92731.0,92730.0,0.05399]
[1763510640837,0.728936,92731.0,92730.0,0.00219803]
[1763510641037,0.62104,92731.0,92730.0,0.11009513]
[1763510641344,0.7289359,92731.0,92730.0,0.00219803]
[1763510641752,0.62104,92731.0,92730.0,0.00219803]
[1763510641936,0.62104,92731.0,92730.0,0.03341604]
[1763510642139,0.62104,92731.0,92730.0,0.07727604]
[1763510642640,0.0001617,92740.0,92730.0,0.07727604]
[1763510642641,0.0001617,92740.0,92739.0,0.1517466]
[1763510642848,0.2604417,92740.0,92739.0,0.18296461]
[1763510643137,0.0001617,92740.0,92739.0,0.18296461]
[1763510643340,0.05856803,92769.0,92768.0,0.1078529]
[1763510643548,0.3608,92773.0,92772.0,0.01272]
[1763510643733,0.62112,92773.0,92772.0,0.15178621]
[1763510643936,0.62112,92773.0,92772.0,0.19564621]
[1763510644348,0.62112,92773.0,92772.0,0.2343592]
[1763510644538,0.62112,92773.0,92772.0,0.21296168]
[1763510644939,0.62112,92773.0,92772.0,0.23435168]
[1763510645246,0.62112,92773.0,92772.0,0.19564621]
[1763510647143,0.62112,92773.0,92772.0,0.0699232]
[1763510647348,0.62112,92773.0,92772.0,0.03121801]
[1763510648144,0.3608,92773.0,92772.0,0.08779801]
[1763510648345,0.0001617,92782.0,92781.0,0.05658]
[1763510648552,0.2604817,92782.0,92781.0,0.08779801]
[1763510651150,0.6212817,92782.0,92781.0,0.03121801]
[1763510651452,0.6212817,92782.0,92781.0,0.08779801]
[1763510652039,0.6212817,92782.0,92781.0,0.04393801]
[1763510652455,0.6212817,92782.0,92781.0,0.03121801]
[1763510653347,0.6212817,92782.0,92781.0,0.00021801]
[1763510653953,0.1078436,92776.0,92774.0,0.03867495]
[1763510654148,0.1078482,92772.0,92770.0,0.03867495]
[1763510654348,0.1078506,92770.0,92769.0,0.03867495]
[1763510654543,0.1078575,92764.0,92763.0,0.0001617]
[1763510654944,0.1078575,92764.0,92734.0,0.07758686]
[1763510654945,0.1078727,92751.0,92748.0,0.05806949]
[1763510655250,0.1078785,92746.0,92744.0,0.1078798]
[1763510655449,0.3682385,92746.0,92745.0,0.01272]
[1763510655846,0.26036,92746.0,92745.0,0.01272]
[1763510656250,0.3608,92754.0,92752.0,0.1078711]
[1763510656453,0.26032,92753.0,92746.0,0.04386]
[1763510657152,0.3681911,92753.0,92751.0,0.1078725]
[1763510657359,0.3681911,92753.0,92745.0,0.05658]
[1763510658058,0.1078745,92750.0,92749.0,0.1078725]
[1763510658449,0.1078745,92750.0,92745.0,0.05658]
[1763510659257,0.26032,92753.0,92752.0,0.1078715]
[1763510659458,0.26032,92753.0,92745.0,0.03519]
[1763510659657,0.26032,92753.0,92752.0,0.1517315]
[1763510660453,0.04405,92751.0,92750.0,0.02466803]
[1763510660658,0.04405,92751.0,92750.0,0.15393183]
[1763510662056,0.30527,92753.0,92752.0,0.04507]
[1763510664264,0.30527,92753.0,92752.0,0.05811]
[1763510666059,0.30527,92753.0,92752.0,0.09034584]
[1763510667252,0.30527,92753.0,92752.0,0.07730584]
[1763510667452,0.30527,92753.0,92752.0,0.09095584]
[1763510669962,0.30527,92753.0,92752.0,0.19882734]
[1763510672151,0.4131403,92753.0,92752.0,0.07730584]
[1763510672355,0.4131403,92753.0,92752.0,0.05470584]
[1763510672750,0.4131403,92753.0,92752.0,0.07779584]
[1763510674467,0.4131403,92753.0,92752.0,0.05389584]
[1763510674654,0.4131403,92753.0,92752.0,0.16176734]
[1763510675163,0.4131403,92753.0,92752.0,0.03223584]
[1763510675368,0.4131403,92753.0,92752.0,0.05389584]
[1763510675967,0.4131403,92753.0,92752.0,0.03223584]
[1763510676564,0.4131403,92753.0,92752.0,0.00023584]
[1763510677671,0.1517873,92747.0,92746.0,0.05806949]
[1763510678371,0.1517873,92747.0,92746.0,0.07972949]
[1763510678572,0.1517873,92747.0,92746.0,0.02166]
[1763510678970,0.04391,92746.0,92745.0,0.05806949]
[1763510679278,0.66495,92746.0,92745.0,0.02166]
[1763510679664,0.1078805,92745.0,92744.0,0.05809472]
[1763510679859,0.1078971,92730.0,92729.0,0.01365]
[1763510680164,0.621,92730.0,92729.0,0.0584]
[1763510680865,0.621,92730.0,92729.0,0.11239]
[1763510680866,0.59945,92730.0,92729.0,0.11239]
[1763510682669,0.3608,92746.0,92745.0,0.1526296]
[1763510682968,0.62104,92746.0,92745.0,0.1526296]
[1763510685366,0.7289185,92746.0,92745.0,0.04475]
[1763510685567,0.7289185,92746.0,92745.0,0.02166]
[1763510685966,0.7289185,92746.0,92744.0,0.01365]
[1763510686164,0.7289185,92746.0,92744.0,0.03531]
[1763510686366,0.7289185,92746.0,92744.0,0.0444]
[1763510686675,0.7289185,92746.0,92744.0,0.05805]
[1763510688275,0.7289185,92746.0,92745.0,0.04475]
[1763510688276,0.62104,92746.0,92745.0,0.04475]
[1763510689070,0.62104,92746.0,92745.0,0.08354902]
[1763510689569,0.62104,92746.0,92745.0,0.11677126]
[1763510690276,0.62104,92746.0,92745.0,0.03322224]
[1763510695779,0.62104,92746.0,92745.0,0.11677126]
[1763510698479,0.62104,92746.0,92745.0,0.07797224]
[1763510699580,0.7289185,92746.0,92745.0,0.07797224]
[1763510700080,0.3608,92746.0,92745.0,0.07797224]
[1763510700269,0.3608,92754.0,92753.0,0.1524403]
[1763510700475,0.621,92754.0,92753.0,0.07779224]
[1763510703779,0.9818,92754.0,92753.0,0.03322224]
[1763510703979,0.9818,92754.0,92740.0,0.0387901]
[1763510703980,0.1078843,92741.0,92740.0,0.0387901]
[1763510704180,0.1078889,92737.0,92725.0,0.05820423]
[1763510704692,0.1078889,92737.0,92736.0,0.0119631]
[1763510705186,0.1078889,92737.0,92736.0,0.04105711]
[1763510705776,0.1078889,92737.0,92736.0,0.0119631]
[1763510707876,0.1078889,92737.0,92721.0,0.3608]
[1763510707877,0.1078889,92737.0,92734.0,0.02909401]
[1763510708078,0.1078889,92737.0,92736.0,0.01372]
[1763510708487,0.1078889,92737.0,92734.0,0.02909401]
[1763510708692,0.1078924,92734.0,92733.0,0.02909401]
[1763510708990,0.3681324,92734.0,92732.0,0.02909401]
[1763510709190,0.3608,92733.0,92732.0,0.02909401]
[1763510710094,0.3608,92733.0,92730.0,0.00219803]
[1763510710095,0.1078948,92732.0,92730.0,0.02909401]
[1763510710295,0.1078948,92732.0,92701.0,0.3608]
[1763510710300,0.1079064,92722.0,92704.0,0.07192423]
[1763510710603,0.62104,92721.0,92720.0,0.06048803]
[1763510714900,0.62104,92721.0,92720.0,0.01591803]
[1763510715104,0.62104,92721.0,92720.0,0.01372]
[1763510715607,0.1079169,92713.0,92706.0,0.1079245]
[1763510715804,0.70304021,92713.0,92710.0,0.00219803]
[1763510716001,0.70304021,92713.0,92712.0,0.04465607]
[1763510716199,0.70304021,92713.0,92712.0,0.03093607]
[1763510716397,0.68004796,92713.0,92691.0,0.1079417]
[1763510716592,0.68004796,92713.0,92694.0,0.107939]
[1763510716593,0.3608,92699.0,92694.0,0.107939]
[1763510716798,2.12104,92699.0,92694.0,0.107939]
[1763510717304,2.12104,92699.0,92697.0,0.1079354]
[1763510717507,2.12104,92699.0,92698.0,0.02295961]
[1763510717808,2.12104,92699.0,92698.0,0.04469961]
[1763510718003,1.5,92699.0,92698.0,0.04469961]
[1763510718309,0.00016179,92708.0,92707.0,0.1524939]
[1763510718610,0.26048179,92708.0,92707.0,0.18309214]
[1763510718909,1.76048179,92708.0,92707.0,0.18309214]
[1763510721402,1.76048179,92708.0,92707.0,0.1524939]
[1763510721602,1.50016179,92708.0,92707.0,0.1524939]
[1763510721803,1.76048179,92708.0,92707.0,0.1524939]
[1763510724111,0.26032,92708.0,92707.0,0.1524939]
[1763510725109,1.76032,92708.0,92707.0,0.1524939]
[1763510726216,0.26032,92708.0,92707.0,0.1524939]
[1763510726404,0.26032,92708.0,92707.0,0.18177773]
[1763510728115,0.00016179,92717.0,92716.0,0.04436]
[1763510728313,0.00016179,92717.0,92716.0,0.07364964]
[1763510728517,0.26044179,92717.0,92716.0,0.07364964]
[1763510729215,0.26044179,92717.0,92716.0,0.02928964]
[1763510729409,0.26144179,92717.0,92711.0,0.1079183]
[1763510729722,0.26144179,92717.0,92712.0,0.07365589]
[1763510730012,0.26144179,92717.0,92713.0,0.1522769]
[1763510730218,0.1079134,92716.0,92713.0,0.04436]
[1763510730515,0.26044179,92717.0,92710.0,0.00219803]
[1763510730516,0.1079192,92711.0,92710.0,0.00219803]
[1763510730710,0.1079262,92705.0,92696.0,0.4824565]
[1763510730920,0.3682062,92705.0,92696.0,0.4824565]
[1763510731312,0.1079308,92701.0,92700.0,0.04655803]
[1763510731613,0.1079308,92701.0,92700.0,0.00219803]
[1763510732304,0.1079308,92701.0,92696.0,0.01382]